bitfinex/quotes_ETHUSD_20251010
["timestamp","ask_amount","ask_price","bid_price","bid_amount"]
[1760125342287,1.92,4018.3,4018.0,0.002]
[1760125342520,0.4537,4018.5,4018.0,0.002]
[1760125342731,0.4537,4018.2,4018.0,0.002]
[1760125342894,30.0,4018.1,4018.0,0.002]
[1760125343093,1.92,4018.0,4016.8,2.074]
[1760125343297,30.0,4017.6,4016.8,2.074]
[1760125343525,1.3181,4017.9,4016.8,2.074]
[1760125343711,1.92,4017.5,4016.8,2.074]
[1760125343888,1.3181,4017.9,4016.8,2.074]
[1760125343889,0.4537,4017.4,4016.8,2.074]
[1760125344230,0.4537,4018.3,4016.9,3.98789481]
[1760125344388,26.002,4018.0,4016.9,3.98789481]
[1760125344589,0.4537,4018.3,4016.9,3.98789481]
[1760125344801,0.2308,4018.5,4016.9,3.98789481]
[1760125344802,0.2308,4018.5,4016.9,3.963]
[1760125345396,0.2308,4018.5,4017.0,6.484]
[1760125345705,1.92,4018.2,4016.8,0.6038]
[1760125346029,1.92,4017.8,4016.9,6.036]
[1760125346229,1.92,4017.4,4017.0,2.075]
[1760125346429,1.92,4017.2,4016.9,2.075]
[1760125346633,0.4537,4017.1,4014.9,0.004]
[1760125346923,0.4537,4017.1,4015.5,6.484]
[1760125347123,1.92,4017.6,4015.6,4.6074]
[1760125347286,30.0,4017.7,4015.6,4.6074]
[1760125347491,1.92,4017.6,4015.6,4.6074]
[1760125347921,1.92,4017.4,4015.6,0.6484]
[1760125348125,31.92,4017.1,4015.7,6.033]
[1760125348337,6.44693911,4017.8,4015.8,2.532]
[1760125348338,1.92,4016.7,4015.8,2.532]
[1760125348495,1.92,4016.5,4015.8,6.033]
[1760125348689,1.92,4016.2,4015.8,6.033]
[1760125348897,0.4537,4016.2,4015.8,6.033]
[1760125349295,2.48924715,4017.3,4015.8,6.033]
[1760125349296,0.4537,4016.8,4015.8,6.033]
[1760125349646,0.4537,4016.8,4015.8,6.6363]
[1760125349848,0.4537,4016.8,4015.9,0.02490101]
[1760125350050,1.92,4017.6,4015.9,0.02490101]
[1760125350051,0.4537,4017.6,4015.9,0.02490101]
[1760125350525,30.0,4017.5,4015.8,6.6363]
[1760125350732,30.0,4017.5,4015.9,0.68853101]
[1760125350899,1.92,4017.2,4015.9,0.68853101]
[1760125351227,31.92,4017.0,4015.9,0.68853101]
[1760125351427,0.4537,4017.6,4015.9,0.66363]
[1760125351632,10.626,4017.3,4015.9,0.66363]
[1760125351817,30.0,4016.9,4015.8,6.033]
[1760125352016,31.92,4016.7,4015.8,6.033]
[1760125352224,10.0,4016.5,4015.8,6.033]
[1760125352401,0.4537,4016.6,4015.8,6.033]
[1760125352838,9.181,4016.5,4015.8,6.033]
[1760125353020,0.4537,4016.6,4015.8,6.033]
[1760125353198,1.92,4016.2,4015.8,6.033]
[1760125353399,0.2308,4015.9,4015.8,6.033]
[1760125353632,0.4537,4015.9,4015.8,6.033]
[1760125353795,10.0,4016.7,4015.8,6.033]
[1760125353796,0.2308,4016.4,4015.8,6.033]
[1760125354001,0.6845,4017.6,4015.9,0.02490101]
[1760125354250,0.6845,4017.6,4015.8,6.6363]
[1760125354843,0.4537,4017.5,4015.8,6.6363]
[1760125355089,2.48816108,4019.1,4015.8,6.6363]
[1760125355090,10.0,4018.9,4015.9,0.02490101]
[1760125355381,30.0,4019.1,4016.0,0.6376]
[1760125355529,2.265,4018.4,4016.1,13.24739]
[1760125355732,1.92,4018.2,4016.1,13.24739]
[1760125355953,0.4537,4018.1,4016.1,13.24739]
[1760125356464,0.4537,4018.1,4016.2,0.02489915]
[1760125356631,0.4537,4018.1,4016.1,13.24739]
[1760125356832,0.4537,4018.1,4016.2,1.388699]
[1760125357074,0.4537,4018.1,4016.3,0.02489853]
[1760125357971,2.3737,4018.8,4016.6,0.6336]
[1760125358155,0.4537,4018.8,4016.7,0.004]
[1760125358365,30.0,4018.7,4016.8,3.957]
[1760125358530,12.3737,4018.6,4016.9,4.3527]
[1760125358868,0.4537,4018.6,4017.0,6.032]
[1760125359033,6.031,4019.2,4017.1,0.02489357]
[1760125359034,0.4537,4019.2,4017.1,0.02489357]
[1760125359233,0.4537,4019.2,4017.2,14.5]
[1760125359632,0.4537,4019.2,4017.0,6.032]
[1760125359936,0.4537,4019.2,4017.1,0.66766357]
[1760125360140,0.4537,4019.2,4017.2,14.5]
[1760125360337,0.4537,4019.2,4017.3,0.02889234]
[1760125360575,4.029,4019.7,4017.4,0.6383]
[1760125360736,4.029,4019.7,4017.5,0.6584911]
[1760125360932,2.3737,4019.6,4017.6,0.31524178]
[1760125361134,0.4537,4019.6,4017.7,2.70288986]
[1760125361535,0.2308,4019.9,4017.8,0.6336]
[1760125361773,10.2308,4022.0,4017.9,0.02958862]
[1760125361774,0.4537,4020.3,4017.9,0.02958862]
[1760125362288,0.4537,4020.3,4018.0,3.12239748]
[1760125362571,0.4537,4020.3,4018.1,0.02488738]
[1760125362944,0.4537,4020.3,4017.9,0.0047]
[1760125363193,0.4537,4020.3,4018.0,0.33163]
[1760125363339,2.5536,4020.1,4018.0,0.33163]
[1760125363534,1.92,4019.8,4018.0,0.33163]
[1760125363779,1.92,4019.8,4018.1,0.02488738]
[1760125364086,10.0,4020.5,4018.1,0.02488738]
[1760125364087,10.0,4021.3,4018.2,0.0047]
[1760125364389,0.2308,4021.4,4018.4,0.6336]
[1760125364540,0.2308,4021.4,4018.6,1.92]
[1760125364735,0.2308,4022.0,4019.6,0.6336]
[1760125364736,0.6845,4022.0,4019.6,0.6336]
[1760125364941,0.2308,4022.1,4019.8,0.6336]
[1760125365148,0.4537,4022.5,4019.9,2.075]
[1760125365444,0.003,4022.6,4020.0,0.02487562]
[1760125365652,0.003,4022.6,4021.0,0.6336]
[1760125365870,0.003,4022.6,4021.1,8.51285892]
[1760125366071,0.003,4022.6,4021.2,3.14528804]
[1760125366275,0.003,4022.6,4021.2,0.6373]
[1760125366466,0.003,4022.6,4021.9,0.6336]
[1760125366665,0.003,4022.6,4022.1,0.6336]
[1760125366977,0.003,4022.6,4022.4,2.48605955]
[1760125367180,0.003,4022.6,4022.5,3.14447631]
[1760125367376,0.003,4022.6,4022.5,17.62331615]
[1760125367678,0.6772,4026.0,4023.6,0.6336]
[1760125367885,0.6772,4026.0,4023.7,12.82089964]
[1760125368267,0.6772,4026.0,4023.8,14.52485212]
[1760125368581,30.0,4025.8,4023.8,14.5]
[1760125368760,30.0,4025.8,4023.7,12.82089964]
[1760125368761,0.4464,4025.7,4023.7,12.82089964]
[1760125368966,1.92,4025.3,4019.9,2.4875828]
[1760125369267,0.6336,4025.5,4023.0,0.6336]
[1760125369464,1.92,4025.4,4023.1,12.502]
[1760125369678,1.92,4025.5,4023.1,12.502]
[1760125370039,1.92,4025.5,4023.2,14.5]
[1760125370237,30.0,4025.1,4023.2,14.5]
[1760125370503,0.6336,4024.9,4023.3,0.02485521]
[1760125370784,0.4545,4025.0,4023.3,0.02185521]
[1760125370954,2.48461661,4024.8,4023.1,27.002]
[1760125371152,2.3745,4024.7,4023.1,27.002]
[1760125371454,0.6336,4024.3,4023.1,12.502]
[1760125371653,0.4545,4024.2,4023.1,12.502]
[1760125371977,0.4545,4024.2,4023.2,0.02485583]
[1760125372139,0.4545,4024.2,4023.1,12.502]
[1760125372766,1.92,4024.4,4023.2,0.02485583]
[1760125372950,1.92,4024.4,4023.1,12.502]
[1760125373152,30.0,4024.5,4023.1,12.502]
[1760125373375,0.4545,4024.4,4023.1,12.502]
[1760125373803,1.92,4024.3,4023.1,12.502]
[1760125373964,0.4545,4024.4,4023.1,12.502]
[1760125374169,0.4545,4024.4,4023.2,0.02485583]
[1760125374381,0.4545,4024.4,4021.2,2.48677921]
[1760125374382,0.2237,4023.3,4022.5,2.073]
[1760125374589,0.2237,4023.3,4022.5,3.936]
[1760125375081,0.4545,4023.2,4022.5,3.936]
[1760125375247,0.4545,4023.2,4023.1,0.002]
[1760125375577,4.86008361,4023.2,4023.1,0.002]
[1760125375779,2.3745,4023.2,4023.1,0.002]
[1760125376342,7.8545,4023.2,4023.1,0.002]
[1760125376546,10.97368361,4023.2,4023.1,0.002]
[1760125377247,35.49368361,4023.2,4023.1,0.002]
[1760125377564,2.3745,4023.2,4023.1,0.002]
[1760125377902,35.49368361,4023.2,4023.1,0.002]
[1760125378067,32.48589255,4022.7,4022.6,0.002]
[1760125378400,3.0081,4023.2,4022.0,3.931]
[1760125378401,2.48589247,4022.8,4022.0,3.931]
[1760125378697,4.7883,4023.3,4022.0,3.931]
[1760125378698,10.0,4022.5,4022.0,3.931]
[1760125379001,0.4545,4022.4,4022.0,3.931]
[1760125379299,0.4545,4022.8,4022.0,3.931]
[1760125379888,0.2237,4023.3,4022.0,3.931]
[1760125379889,0.4545,4022.7,4022.0,3.931]
[1760125380199,2.70927269,4023.3,4022.1,0.02486263]
[1760125380200,0.2237,4023.3,4022.1,0.02486263]
[1760125380500,0.2237,4023.3,4022.2,3.93]
[1760125381368,1.92,4023.1,4022.2,3.93]
[1760125381564,4.0292,4023.7,4022.3,0.02486139]
[1760125381769,4.0292,4023.7,4022.2,3.93]
[1760125381770,0.4545,4025.4,4022.2,4.5303]
[1760125381964,0.4545,4025.4,4020.7,0.0047]
[1760125381965,2.48538031,4023.6,4020.7,0.0047]
[1760125382207,1.92,4023.3,4021.4,14.5]
[1760125382508,1.92,4023.1,4021.5,1.28886634]
[1760125382708,0.4545,4023.2,4021.6,6.02786572]
[1760125382918,0.2237,4023.5,4021.7,3.93]
[1760125382919,0.4545,4023.1,4021.7,3.93]
[1760125383120,11.92,4022.9,4021.7,3.93]
[1760125383270,0.4545,4023.0,4021.8,0.02486448]
[1760125383617,12.734,4022.9,4021.7,3.93]
[1760125383822,0.4545,4023.0,4021.7,3.93]
[1760125384170,4.40589005,4022.8,4020.1,0.46392018]
[1760125384365,1.92,4022.4,4020.1,0.0047]
[1760125384600,2.48620299,4022.2,4020.2,2.076]
[1760125384868,0.4545,4022.1,4020.3,8.555]
[1760125385138,1.92,4021.8,4020.4,3.024]
[1760125385375,0.6782,4021.7,4020.4,3.024]
[1760125385806,3.0081,4021.6,4019.1,0.0047]
[1760125386009,1.92,4021.5,4019.2,16.576]
[1760125386213,12.3745,4021.5,4019.3,2.30597]
[1760125386410,1.92,4021.2,4019.3,2.30597]
[1760125386621,0.4545,4021.1,4019.3,2.30597]
[1760125386791,0.4545,4021.1,4019.4,0.02487933]
[1760125386992,0.4545,4021.1,4019.5,0.02487871]
[1760125387216,2.3745,4021.5,4019.6,0.23308487]
[1760125387395,0.4545,4021.5,4019.6,0.23778487]
[1760125387593,0.4545,4022.2,4019.7,0.02487747]
[1760125387796,0.4545,4022.9,4021.0,2.48689376]
[1760125388113,0.2237,4023.9,4021.1,8.7937]
[1760125388417,0.2237,4023.9,4022.0,2.48627583]
[1760125388584,0.2237,4023.9,4022.1,12.484]
[1760125388783,0.2237,4023.9,4022.2,1.24887]
[1760125389011,30.0,4024.2,4022.3,0.02486139]
[1760125389210,0.4545,4024.3,4022.4,0.0047]
[1760125389421,0.4545,4024.7,4022.6,2.48594912]
[1760125389621,0.4545,4024.7,4022.7,0.02485892]
[1760125389825,0.4545,4025.4,4023.1,2.48564032]
[1760125390132,0.4545,4025.4,4023.2,4.56328218]
[1760125390341,0.001,4025.5,4023.6,2.48531552]
[1760125390485,0.001,4025.5,4023.8,2.48520103]
[1760125390685,0.001,4025.5,4023.9,6.50855151]
[1760125390924,0.001,4025.5,4024.0,3.11715515]
[1760125391125,0.001,4025.5,4024.1,2.50982373]
[1760125391327,0.001,4025.5,4024.0,3.11715515]
[1760125391484,0.001,4025.5,4024.0,1.04415515]
[1760125391683,0.001,4025.5,4024.2,0.6336]
[1760125391991,0.001,4025.5,4024.4,2.48483102]
[1760125392226,0.001,4025.5,4024.3,3.195]
[1760125392227,0.001,4025.5,4024.3,3.1997]
[1760125392430,0.001,4025.5,4024.5,2.48475762]
[1760125392624,0.001,4025.5,4024.7,2.48465724]
[1760125392792,0.001,4025.5,4024.9,0.6336]
[1760125392997,0.001,4025.5,4025.1,2.48437274]
[1760125393196,0.001,4025.5,4025.0,3.93]
[1760125393197,0.001,4025.5,4025.2,2.073]
[1760125393742,0.001,4025.5,4025.3,0.0047]
[1760125394191,0.001,4025.5,4025.2,2.073]
[1760125394533,0.001,4025.5,4025.4,0.0047]
[1760125394704,0.001,4025.5,4023.1,0.002]
[1760125395031,0.001,4025.5,4024.5,14.5]
[1760125395188,0.001,4025.5,4023.3,7.772]
[1760125395189,0.001,4025.5,4024.6,2.225]
[1760125395391,0.4555,4025.5,4024.7,4.013]
[1760125395702,0.4555,4025.5,4023.3,7.772]
[1760125395703,0.4555,4025.5,4024.8,4.013]
[1760125395902,0.4555,4025.5,4024.9,3.501]
[1760125396102,0.001,4025.5,4024.9,3.501]
[1760125396320,0.001,4025.5,4024.9,4.03517208]
[1760125397260,0.001,4025.5,4024.9,3.501]
[1760125397756,0.4757,4025.5,4025.0,3.928]
[1760125397955,0.001,4025.5,4025.0,3.928]
[1760125398856,0.001,4025.5,4024.1,14.5]
[1760125399158,0.001,4025.5,4024.2,13.926]
[1760125399346,0.001,4025.5,4024.3,6.0]
[1760125399654,0.001,4025.5,4024.4,14.5]
[1760125401328,0.001,4025.5,4023.8,2.48521021]
[1760125401329,0.001,4025.5,4023.5,0.0047]
[1760125401534,0.4747,4025.4,4023.6,2.091]
[1760125401729,0.4747,4025.4,4023.7,0.8566]
[1760125401928,0.4747,4025.4,4023.7,15.3566]
[1760125402145,0.001,4025.5,4024.1,2.48498852]
[1760125402390,0.001,4025.5,4024.2,3.927]
[1760125402675,0.001,4025.5,4024.2,3.9317]
[1760125402832,0.001,4025.5,4024.3,14.89317]
[1760125403033,0.001,4025.5,4024.4,2.072]
[1760125403578,0.001,4025.5,4024.6,2.48471022]
[1760125403774,0.001,4025.5,4024.5,0.6383]
[1760125403775,0.001,4025.5,4024.7,18.427]
[1760125404279,0.001,4025.5,4024.7,14.5]
[1760125404429,0.001,4025.5,4024.8,5.999]
[1760125405262,0.001,4025.5,4024.9,0.0047]
[1760125405562,0.003,4027.3,4024.9,0.6383]
[1760125405765,0.003,4027.3,4024.8,5.999]
[1760125405766,0.003,4027.3,4025.0,0.66214472]
[1760125405967,0.003,4027.3,4025.4,14.5]
[1760125406169,0.003,4027.3,4025.5,5.62543305]
[1760125406328,0.003,4027.3,4025.6,2.071]
[1760125406756,0.003,4027.3,4025.5,1.69843305]
[1760125406957,0.003,4027.3,4025.6,12.472]
[1760125407350,0.003,4027.3,4025.7,0.6373]
[1760125407680,0.003,4027.3,4025.9,2.48387615]
[1760125407826,0.003,4027.3,4026.1,0.6336]
[1760125408027,0.003,4027.3,4026.3,0.6336]
[1760125408279,0.003,4027.3,4026.6,2.48344851]
[1760125408428,0.003,4027.3,4026.5,0.6336]
[1760125408429,0.003,4027.3,4026.7,2.48341282]
[1760125408739,0.003,4027.3,4027.2,14.5]
[1760125408940,0.003,4027.3,4027.2,22.98011481]
[1760125409146,0.003,4027.3,4027.2,14.5]
[1760125409540,0.003,4027.3,4027.2,6.0007]
[1760125409751,0.003,4027.3,4027.2,5.997]
[1760125410085,0.003,4027.3,4027.2,21.0967]
[1760125410229,0.003,4027.3,4027.2,5.997]
[1760125411868,0.003,4027.3,4027.2,3.925]
[1760125412429,0.4777,4027.3,4026.3,2.071]
[1760125412645,0.4777,4027.3,4026.4,3.925]
[1760125412845,0.003,4027.3,4026.4,4.5246]
[1760125413246,0.003,4027.3,4026.5,0.02483546]
[1760125413773,0.003,4027.3,4026.6,0.0037]
[1760125413979,0.003,4027.3,4026.7,5.996]
[1760125414185,0.003,4027.3,4026.6,14.5]
[1760125414349,0.003,4027.3,4026.7,2.071]
[1760125414536,0.003,4027.3,4026.7,5.886]
[1760125414738,0.004,4027.3,4026.7,7.9246]
[1760125414946,0.004,4027.3,4026.8,0.02853361]
[1760125415299,0.004,4027.3,4026.7,2.0386]
[1760125415587,0.004,4027.3,4025.7,0.0037]
[1760125415736,0.004,4027.3,4025.8,5.996]
[1760125415939,0.004,4027.3,4025.9,2.074]
[1760125416283,0.004,4027.3,4026.1,0.6336]
[1760125417284,0.004,4027.3,4026.2,0.02853731]
[1760125417433,0.004,4027.3,4027.2,0.6336]
[1760125417637,0.004,4027.3,4027.2,12.465]
[1760125417861,0.004,4027.3,4027.2,14.5]
[1760125418046,0.004,4027.3,4027.2,20.494]
[1760125418259,0.004,4027.3,4027.2,5.994]
[1760125418570,0.004,4027.3,4027.2,5.9977]
[1760125418781,0.004,4027.3,4027.2,6.59747]
[1760125419283,0.004,4027.3,4027.2,6.59377]
[1760125419578,0.004,4027.3,4026.6,0.0037]
[1760125419748,0.004,4027.3,4026.7,5.994]
[1760125420272,0.004,4027.3,4026.3,0.70699234]
[1760125420435,0.004,4027.3,4022.3,2.48813377]
[1760125420436,0.004,4027.3,4026.4,2.69]
[1760125420636,0.004,4027.3,4026.5,2.69]
[1760125420835,0.004,4027.3,4026.6,2.07]
[1760125421445,0.004,4027.3,4026.7,0.02483423]
[1760125421648,0.004,4027.3,4026.6,2.339]
[1760125421977,0.004,4027.3,4026.7,0.02483423]
[1760125422161,0.004,4027.3,4026.7,14.5037]
[1760125422992,0.004,4027.3,4026.7,16.98711073]
[1760125423166,0.004,4027.3,4026.8,1.99461107]
[1760125423555,0.004,4027.3,4026.9,0.0037]
[1760125423749,0.004,4027.3,4026.6,2.339]
[1760125423750,0.004,4027.3,4027.0,3.9267]
[1760125424164,0.004,4027.3,4027.0,3.923]
[1760125424979,0.4747,4027.2,4026.6,2.07]
[1760125425183,0.004,4027.3,4026.7,3.923]
[1760125425354,0.004,4027.3,4026.8,0.62413361]
[1760125425771,0.004,4027.3,4026.8,0.02483361]
[1760125426087,0.4787,4027.3,4025.5,0.0037]
[1760125426380,30.0,4027.2,4025.6,5.993]
[1760125426592,1.92,4026.9,4025.7,3.564]
[1760125426796,0.4696,4027.2,4025.8,2.07]
[1760125426954,1.92,4027.0,4025.8,2.07]
[1760125427155,0.004,4027.3,4025.9,0.02483916]
[1760125427367,0.004,4027.3,4025.9,0.38372308]
[1760125427661,0.004,4027.3,4025.9,0.35888392]
[1760125429476,0.004,4027.3,4025.8,2.07]
[1760125429477,0.4318,4027.3,4025.8,2.07]
[1760125429675,0.004,4027.3,4025.9,0.02483916]
[1760125429970,0.004,4027.3,4025.8,2.07]
[1760125430339,0.004,4027.3,4024.4,2.634]
[1760125430340,31.92,4027.1,4025.9,2.07]
[1760125430458,31.92,4027.1,4025.6,6.47]
[1760125430459,2.4834261,4026.7,4025.6,2.07]
[1760125430659,1.92,4026.3,4025.7,3.923]
[1760125430974,0.4278,4026.6,4025.7,3.923]
[1760125431174,0.4278,4026.6,4024.1,0.0037]
[1760125431371,0.4278,4026.6,3881.8,0.004186]
[1760125431372,30.0,4026.3,4022.6,7.766]
[1760125431573,2.48391852,4025.9,4023.5,6.47]
[1760125431774,30.0,4025.7,4023.6,0.85437]
[1760125431978,1.92,4025.4,4023.6,0.85437]
[1760125432178,0.6511,4025.8,4023.6,0.85437]
[1760125432408,14.578,4025.7,4023.7,0.02485274]
[1760125432572,0.6511,4025.8,4023.7,0.02485274]
[1760125432768,0.6511,4025.8,4023.8,0.73492227]
[1760125432967,0.6511,4025.8,4023.9,0.02485151]
[1760125433198,0.6511,4025.8,4023.9,0.0037]
[1760125433691,0.6511,4025.8,4025.4,0.002]
[1760125433887,0.4278,4025.7,4025.4,0.002]
[1760125434293,0.4278,4025.6,4025.4,0.002]
[1760125434469,13.326,4025.5,4025.4,0.002]
[1760125434670,1.92,4025.4,4024.5,2.07]
[1760125434883,1.92,4025.4,4022.6,0.0057]
[1760125434884,1.92,4025.1,4024.4,3.923]
[1760125435083,2.07,4026.0,4024.4,3.923]
[1760125435084,0.4278,4026.9,4024.4,0.3923]
[1760125435287,0.4278,4027.2,4024.6,0.6336]
[1760125435469,30.0,4027.1,4024.7,0.0037]
[1760125435669,30.0,4027.0,4023.2,1.92]
[1760125435908,2.6328,4027.0,4024.2,2.48496595]
[1760125436073,0.4278,4027.0,4024.5,2.48478071]
[1760125436421,0.4278,4027.0,4024.6,0.02854718]
[1760125436587,11.92,4026.8,4024.7,5.994]
[1760125436913,30.0,4026.9,4024.8,0.02484595]
[1760125437079,0.4278,4026.8,4024.7,5.994]
[1760125437280,0.4278,4026.7,4024.8,12.465]
[1760125437502,1.92,4026.5,4024.9,12.48984533]
[1760125437839,1.92,4026.0,4024.9,12.465]
[1760125438130,11.92,4026.2,4024.9,12.465]
[1760125438131,31.92,4025.8,4024.9,12.465]
[1760125438413,1.92,4025.4,4024.9,5.994]
[1760125438576,0.4278,4025.7,4024.9,5.994]
[1760125439188,0.4278,4026.4,4025.0,0.02484472]
[1760125439514,0.4278,4026.4,4025.0,0.62672919]
[1760125439680,0.4278,4026.4,4025.0,0.02484472]
[1760125439875,4.419,4026.3,4023.8,0.0037]
[1760125440179,1.92,4026.2,4023.9,9.82]
[1760125440405,0.4278,4026.1,4024.0,0.02485089]
[1760125440608,0.4278,4026.1,4024.0,0.65845089]
[1760125440880,0.4278,4026.7,4024.1,1.05154509]
[1760125441190,0.004,4027.3,4024.4,0.6336]
[1760125441378,0.004,4027.3,4024.6,0.6336]
[1760125441594,0.004,4027.3,4025.5,2.48411183]
[1760125441795,0.4278,4027.2,4025.0,0.6336]
[1760125442031,0.004,4027.3,4025.4,0.6336]
[1760125442230,0.004,4027.3,4025.6,0.6336]
[1760125442417,0.004,4027.3,4025.7,0.0248404]
[1760125442729,0.004,4027.3,4026.4,2.48360575]
[1760125442897,0.004,4027.3,4026.5,9.6937]
[1760125443090,0.004,4027.3,4026.6,8.50227821]
[1760125443293,0.004,4027.3,4026.7,1.49779782]
[1760125443630,0.004,4027.3,4026.8,5.994]
[1760125444135,0.004,4027.3,4026.9,0.6373]
[1760125444335,0.004,4027.3,4027.1,2.48315058]
[1760125444639,0.004,4027.3,4027.0,0.0037]
[1760125444928,0.004,4027.3,4027.2,12.466]
[1760125445129,0.004,4027.3,4027.2,13.71545318]
[1760125445430,0.004,4027.3,4026.3,0.0037]
[1760125445726,0.004,4027.3,4026.4,12.463]
[1760125445893,0.004,4027.3,4026.7,2.48340065]
[1760125446093,0.004,4027.3,4026.8,0.02483361]
[1760125446409,0.4278,4027.2,4026.4,2.246]
[1760125446612,0.004,4027.3,4026.5,4.34083546]
[1760125446807,0.004,4027.3,4026.6,5.992]
[1760125447007,0.4278,4027.2,4026.7,2.07]
[1760125447222,0.004,4027.3,4026.7,2.09483423]
[1760125447731,27.003,4026.8,4026.7,2.07]
[1760125447921,19.37,4026.7,4026.6,3.922]
[1760125448124,19.7978,4026.7,4026.6,3.922]
[1760125448438,8.9008,4026.7,4026.6,3.922]
[1760125448647,6.2058,4026.7,4026.6,3.922]
[1760125448935,16.2058,4026.7,4026.6,3.922]
[1760125449139,32.3478,4026.7,4026.6,3.922]
[1760125449337,32.73745946,4026.7,4026.6,3.922]
[1760125449502,1.92,4026.4,4026.1,3.922]
[1760125449704,0.4278,4026.3,4026.1,3.922]
[1760125450138,34.83153155,4026.2,4026.1,3.92175404]
[1760125450302,1.92,4025.8,4025.4,5.992]
[1760125450517,0.2233,4025.5,4025.4,3.922]
[1760125450848,0.2233,4025.5,4025.0,2.07]
[1760125450849,1.92,4025.4,4025.0,2.07]
[1760125451055,1.92,4025.0,4024.7,3.922]
[1760125451345,0.4278,4024.9,4024.7,3.922]
[1760125451519,1.92,4025.3,4024.7,3.922]
[1760125451706,0.38974943,4025.8,4024.8,0.02484595]
[1760125452061,0.4278,4026.3,4024.8,0.02484595]
[1760125452256,0.4278,4026.8,4024.9,0.0037]
[1760125452539,0.38960382,4026.5,4025.2,0.6336]
[1760125452704,0.004,4027.3,4024.7,4.4126783]
[1760125452705,0.004,4027.3,4025.3,8.50582974]
[1760125452907,0.39364394,4027.3,4025.9,0.002]
[1760125453104,0.001,4027.1,4026.0,3.922]
[1760125453338,0.001,4027.1,4026.1,2.071]
[1760125453710,0.001,4027.1,4026.2,0.02483731]
[1760125454026,0.001,4027.1,4026.1,2.071]
[1760125454224,0.001,4027.1,4026.2,1.27153731]
[1760125454427,0.001,4027.1,4026.3,5.993]
[1760125455140,0.001,4027.1,4026.4,0.02483608]
[1760125455528,0.001,4027.1,4026.5,0.0037]
[1760125455707,0.003,4027.3,4026.6,0.65843484]
[1760125455910,0.003,4027.3,4027.0,0.6336]
[1760125456117,0.003,4027.3,4027.2,3.11671481]
[1760125456438,0.003,4027.3,4027.2,0.6336]
[1760125456658,0.003,4027.3,4027.2,0.0027]
[1760125456857,0.003,4027.3,4027.2,3.921]
[1760125457059,0.003,4027.3,4027.2,6.3831]
[1760125457234,0.003,4027.3,4027.2,3.921]
[1760125457435,0.003,4027.3,4027.2,5.991]
[1760125458223,0.003,4027.3,4027.2,5.9937]
[1760125458862,0.003,4027.3,4027.2,5.991]
[1760125459034,0.003,4027.3,4027.2,5.9937]
[1760125459224,0.003,4027.3,4027.2,7.24017]
[1760125459828,0.003,4027.3,4027.2,7.23747]
[1760125460246,0.003,4027.3,4027.2,7.24017]
[1760125460425,0.003,4027.3,4027.2,10.35688481]
[1760125460975,0.0003,4027.3,4027.2,10.35688481]
[1760125461126,0.0003,4027.3,4027.2,10.48088481]
[1760125461576,0.0003,4027.3,4027.2,15.03488481]
[1760125462003,0.003,4028.5,4028.4,3.11597513]
[1760125462298,0.0042196,4029.0,4028.9,3.11566706]
[1760125462499,0.3892206,4032.0,4029.0,0.6336]
[1760125462651,0.3892206,4032.0,4028.9,10.39]
[1760125462848,0.3892206,4032.0,4030.2,0.6336]
[1760125463072,0.2181,4032.6,4030.4,0.6336]
[1760125463257,0.2181,4032.6,4030.5,0.97384495]
[1760125463465,0.3891272,4032.5,4031.3,2.48058938]
[1760125463757,0.92325168,4033.6,4032.1,0.124]
[1760125463997,0.92325168,4033.6,4032.2,10.087]
[1760125464302,0.92325168,4033.6,4032.5,0.6336]
[1760125464478,0.92325168,4033.6,4032.2,10.087]
[1760125464479,0.92325168,4033.6,4033.5,3.11283639]
[1760125464677,0.92325168,4033.6,4033.5,9.10183639]
[1760125464879,0.92325168,4033.6,4033.5,0.6336]
[1760125465079,0.92325168,4033.6,4033.5,5.988]
[1760125466580,0.92325168,4033.6,4033.5,6.6216]
[1760125466779,0.92325168,4033.6,4033.5,7.93056]
[1760125467154,0.92325168,4033.6,4033.5,10.40979639]
[1760125467492,0.92325168,4033.6,4033.5,10.53299639]
[1760125468068,0.89845994,4033.6,4033.5,10.53299639]
[1760125468248,0.0277919,4037.3,4034.4,2.47865153]
[1760125468449,0.38874466,4037.0,4034.6,0.6336]
[1760125468763,0.38874466,4037.0,4035.0,0.6336]
[1760125468963,0.38874466,4037.0,4035.1,0.39]
[1760125469170,0.0277795,4036.9,4035.1,2.458]
[1760125469493,0.38874466,4037.0,4035.1,0.8923]
[1760125469693,0.437,4036.8,4035.2,11.752]
[1760125469892,0.38868879,4036.6,4033.0,1.92]
[1760125470205,0.38868879,4036.6,4033.9,0.6336]
[1760125470353,0.38868879,4036.6,4034.2,0.6336]
[1760125470557,0.38868879,4036.6,4034.3,0.02478744]